bitfinex/quotes_SOLUSD_20240703
["timestamp","ask_amount","ask_price","bid_price","bid_amount"]
[1720044633650,20.5898,141.25,141.21,7.0814]
[1720044633852,7.0798,141.25,141.21,7.0814]
[1720044634055,20.5898,141.25,141.21,7.0814]
[1720044635866,15.332,141.29,141.22,17.7021]
[1720044636046,13.51,141.28,141.23,13.51]
[1720044636251,7.078,141.29,141.24,24.78]
[1720044636645,13.51,141.28,141.24,24.78]
[1720044636837,7.078,141.29,141.24,24.78]
[1720044637034,20.5881,141.28,141.24,24.78]
[1720044637259,16.2798,141.33,141.26,7.0791]
[1720044637576,7.0756,141.33,141.29,7.0772]
[1720044637751,13.51,141.32,141.29,7.0772]
[1720044638071,20.5863,141.32,141.28,24.7729]
[1720044638536,13.51,141.32,141.29,7.0776]
[1720044638733,40.2992,141.37,141.3,7.077]
[1720044638734,7.0753,141.34,141.3,7.077]
[1720044638934,20.5853,141.34,141.3,7.077]
[1720044639154,7.0747,141.35,141.31,7.0765]
[1720044639362,20.5843,141.36,141.31,7.0765]
[1720044639557,20.5843,141.36,141.3,47.0713]
[1720044639558,7.0743,141.36,141.32,7.0761]
[1720044639762,7.0737,141.37,141.32,7.0761]
[1720044640072,7.0737,141.37,141.33,7.0755]
[1720044640565,7.0737,141.37,141.33,20.5855]
[1720044640861,7.0737,141.37,141.33,7.0755]
[1720044641076,20.5837,141.37,141.33,7.0755]
[1720044641638,20.5837,141.37,141.32,38.2758]
[1720044641839,7.0737,141.37,141.32,24.7658]
[1720044642248,7.0742,141.36,141.32,24.7658]
[1720044642466,17.6831,141.38,141.3,15.8689]
[1720044642638,7.0751,141.34,141.3,15.8689]
[1720044643436,7.0756,141.33,141.3,15.8689]
[1720044644250,7.0752,141.34,141.3,15.8689]
[1720044644666,7.0752,141.34,141.3,22.9459]
[1720044645572,7.0747,141.35,141.3,22.9459]
[1720044645869,7.0747,141.35,141.31,7.0765]
[1720044646660,7.0739,141.37,141.31,17.6906]
[1720044646859,7.0739,141.37,141.33,7.0756]
[1720044647158,26.97,141.39,141.33,7.0756]
[1720044647462,7.0739,141.37,141.33,7.0756]
[1720044650369,20.0,141.38,141.34,7.0751]
[1720044650370,27.0732,141.38,141.34,7.0751]
[1720044651453,27.0732,141.38,141.33,24.7643]
[1720044652368,7.0736,141.37,141.33,24.7643]
[1720044653080,27.0732,141.38,141.34,7.075]
[1720044653263,7.0732,141.38,141.34,7.075]
[1720044653580,7.0736,141.37,141.33,24.7644]
[1720044655259,7.0733,141.38,141.33,24.7644]
[1720044655455,7.0733,141.38,141.34,7.075]
[1720044655680,7.0728,141.39,141.35,7.0746]
[1720044656165,7.0728,141.39,141.34,7.0749]
[1720044656497,17.68,141.41,141.34,7.0749]
[1720044656657,7.0732,141.38,141.34,7.0749]
[1720044659384,7.0726,141.39,141.35,7.0744]
[1720044660063,7.0726,141.39,141.35,24.7609]
[1720044660254,7.0717,141.41,141.37,7.0733]
[1720044660458,7.0713,141.42,141.37,7.0733]
[1720044660683,7.0717,141.41,141.37,7.0733]
[1720044662003,7.0717,141.41,141.37,20.5433]
[1720044662195,7.0712,141.42,141.38,7.0729]
[1720044662386,20.5412,141.42,141.38,7.0729]
[1720044662562,7.0712,141.42,141.38,7.0729]
[1720044663274,7.0712,141.42,141.38,20.5429]
[1720044664270,20.5406,141.43,141.39,7.0722]
[1720044664490,7.0706,141.43,141.39,7.0722]
[1720044664802,20.5406,141.43,141.39,7.0722]
[1720044665815,71.5528,141.47,141.38,13.47]
[1720044665974,7.0699,141.45,141.41,7.0714]
[1720044666307,13.47,141.44,141.4,7.0718]
[1720044666800,13.47,141.44,141.41,7.0715]
[1720044667596,7.0699,141.45,141.41,20.5415]
[1720044668507,7.0699,141.45,141.41,7.0715]
[1720044668816,7.0699,141.45,141.41,20.5415]
[1720044669300,33.47,141.46,141.42,7.071]
[1720044669301,27.0692,141.46,141.42,7.071]
[1720044669479,17.6689,141.5,141.43,7.0703]
[1720044669679,7.0682,141.48,141.44,7.07]
[1720044670079,7.0682,141.48,141.43,17.6763]
[1720044670281,13.47,141.48,141.44,7.0698]
[1720044670705,20.5383,141.48,141.44,7.0698]
[1720044670926,7.0683,141.48,141.44,7.0698]
[1720044671093,20.5383,141.48,141.44,7.0698]
[1720044671396,20.5383,141.48,141.43,24.7467]
[1720044671598,13.47,141.47,141.43,24.7467]
[1720044671973,13.47,141.47,141.44,7.07]
[1720044673481,7.0683,141.48,141.44,7.07]
[1720044673686,13.47,141.47,141.44,7.07]
[1720044674707,7.0683,141.48,141.44,7.07]
[1720044674877,13.47,141.47,141.44,7.07]
[1720044675206,13.47,141.47,141.45,7.0694]
[1720044676898,7.0678,141.49,141.45,7.0694]
[1720044677104,13.47,141.48,141.45,7.0694]
[1720044679598,13.47,141.46,141.41,15.337]
[1720044679781,17.6732,141.46,141.38,15.2277]
[1720044679983,13.47,141.43,141.4,7.0718]
[1720044680894,7.0697,141.45,141.41,7.0716]
[1720044681099,13.47,141.44,141.41,7.0716]
[1720044682310,7.0697,141.45,141.41,7.0716]
[1720044684612,13.47,141.44,141.41,24.7506]
[1720044685283,7.0693,141.46,141.41,24.7506]
[1720044685489,13.47,141.44,141.41,24.7506]
[1720044688001,7.0696,141.45,141.41,24.7506]
[1720044688218,13.47,141.44,141.41,24.7506]
[1720044691411,7.0696,141.45,141.41,24.7506]
[1720044691611,13.47,141.44,141.41,24.7506]
[1720044693423,0.34,141.47,141.42,7.0707]
[1720044693719,13.47,141.44,141.42,7.0707]
[1720044694698,13.47,141.44,141.41,24.7504]
[1720044696815,7.0701,141.44,141.4,7.0719]
[1720044696997,13.47,141.43,141.4,7.0719]
[1720044697820,13.47,141.43,141.41,7.0715]
[1720044698119,13.47,141.44,141.41,7.0715]
[1720044701405,7.0697,141.45,141.41,7.0715]
[1720044702330,13.47,141.44,141.41,7.0715]
[1720044706025,13.47,141.44,141.42,7.071]
[1720044706230,7.2392,141.46,141.42,7.071]
[1720044706409,13.47,141.44,141.42,7.071]
[1720044707216,7.2392,141.46,141.42,7.071]
[1720044707409,13.47,141.45,141.42,7.071]
[1720044710332,13.47,141.44,141.42,7.071]
[1720044711222,13.47,141.44,141.41,7.0715]
[1720044712232,20.5404,141.44,141.4,24.7519]
[1720044712439,13.47,141.43,141.4,24.7519]
[1720044712725,7.0704,141.44,141.4,24.7519]
[1720044712936,20.5404,141.44,141.4,24.7519]
[1720044713736,13.47,141.44,141.41,7.0715]
[1720044714105,7.2393,141.46,141.42,7.0711]
[1720044714307,13.47,141.44,141.41,7.0712]
[1720044715034,0.17,141.48,141.42,17.6775]
[1720044715345,13.47,141.46,141.42,17.6775]
[1720044715520,6.82991377,141.5,141.44,17.6747]
[1720044715718,13.89721377,141.5,141.45,7.0693]
[1720044716049,13.47,141.48,141.44,24.7446]
[1720044718320,13.47,141.47,141.44,24.7446]
[1720044718939,13.89751377,141.5,141.45,7.0694]
[1720044719140,13.47,141.48,141.45,7.0694]
[1720044719747,100.534648,141.52,141.43,15.5747]
[1720044719748,20.5386,141.47,141.43,15.5747]
[1720044719926,13.47,141.46,141.43,22.6451]
[1720044720341,20.5386,141.47,141.43,22.6451]
[1720044720545,13.47,141.47,141.43,22.6451]
[1720044721618,7.0682,141.48,141.43,22.6451]
[1720044721852,20.5382,141.48,141.43,36.1151]
[1720044725748,13.47,141.48,141.44,7.07]
[1720044725956,13.47,141.49,141.45,7.0695]
[1720044726451,13.47,141.48,141.44,7.0699]
[1720044726654,20.5381,141.48,141.44,7.0699]
[1720044728327,13.47,141.48,141.44,7.0699]
[1720044729732,13.47,141.49,141.45,7.0696]
[1720044729949,7.0673,141.5,141.45,7.0696]
[1720044730134,13.47,141.49,141.45,7.0696]
[1720044733762,7.0673,141.5,141.46,7.0689]
[1720044733950,100.534648,141.52,141.49,7.0675]
[1720044734155,13.47,141.51,141.48,17.67]
[1720044734463,107.600848,141.52,141.48,17.67]
[1720044734645,13.47,141.5,141.47,7.0683]
[1720044735452,7.0666,141.51,141.47,7.0683]
[1720044735737,13.47,141.5,141.46,7.0689]
[1720044736040,7.0666,141.51,141.46,7.0689]
[1720044736251,13.47,141.5,141.47,7.0685]
[1720044736447,13.47,141.51,141.47,7.0685]
[1720044736649,20.5367,141.51,141.47,7.0685]
[1720044736843,20.5367,141.51,141.46,13.47]
[1720044736844,20.5367,141.51,141.46,20.539]
[1720044737255,20.5371,141.5,141.46,7.069]
[1720044738350,13.47,141.5,141.46,7.069]
[1720044738848,7.0667,141.51,141.46,7.069]
[1720044739051,20.5367,141.51,141.47,7.0685]
[1720044739248,100.534648,141.52,141.45,24.7419]
[1720044739553,7.0679,141.49,141.45,17.6728]
[1720044739749,7.0679,141.49,141.45,38.2124]
[1720044739950,7.0671,141.5,141.45,38.2124]
[1720044740151,20.5371,141.5,141.45,38.2124]
[1720044740458,27.0668,141.51,141.46,20.5391]
[1720044740666,20.5368,141.51,141.46,20.5391]
[1720044744951,20.5368,141.51,141.47,7.0684]
[1720044745367,7.0668,141.51,141.47,7.0684]
[1720044746080,20.5368,141.51,141.47,7.0684]
[1720044746651,20.5368,141.51,141.46,20.5389]
[1720044747265,20.5368,141.51,141.47,7.0685]
[1720044749865,7.0668,141.51,141.47,7.0685]
[1720044750057,20.5368,141.51,141.47,7.0685]
[1720044750476,7.0668,141.51,141.47,7.0685]
[1720044750651,20.5368,141.51,141.47,7.0685]
[1720044753477,7.0668,141.51,141.47,7.0685]
[1720044753666,13.47,141.51,141.47,7.0685]
[1720044753862,114.004648,141.52,141.49,7.0673]
[1720044754175,100.534648,141.52,141.5,7.0669]
[1720044754568,100.534648,141.52,141.5,7.54052833]
[1720044755372,100.534648,141.52,141.5,7.0669]
[1720044757061,100.534648,141.52,141.51,7.0666]
[1720044757566,100.534648,141.52,141.51,20.5366]
[1720044757772,100.534648,141.52,141.51,7.0666]
[1720044758464,100.534648,141.52,141.5,24.7344]
[1720044758664,100.534648,141.52,141.5,17.6674]
[1720044759063,100.034648,141.52,141.5,17.6674]
[1720044759263,100.034648,141.52,141.5,24.7341]
[1720044759681,100.034648,141.52,141.5,17.6674]
[1720044759885,113.504648,141.52,141.48,22.4297]
[1720044760087,120.570848,141.52,141.48,22.4297]
[1720044761160,7.0673,141.5,141.45,24.7432]
[1720044761390,100.034648,141.52,141.44,29.3783]
[1720044761561,13.47,141.5,141.44,15.9083]
[1720044761764,13.47,141.5,141.44,29.3783]
[1720044762071,13.47,141.5,141.46,24.7417]
[1720044762995,7.0668,141.51,141.46,24.7417]
[1720044763165,13.47,141.5,141.46,24.7417]
[1720044763576,13.47,141.5,141.47,7.0686]
[1720044763789,13.47,141.5,141.46,24.7416]
[1720044764983,13.47,141.5,141.44,29.3783]
[1720044764984,100.034648,141.52,141.48,17.6701]
[1720044765180,113.504648,141.52,141.49,7.0672]
[1720044765979,100.034648,141.52,141.49,7.0672]
[1720044766369,100.034648,141.52,141.5,7.067]
[1720044766872,100.034648,141.52,141.51,7.0666]
[1720044767276,100.034648,141.52,141.5,24.7342]
[1720044767680,100.034648,141.52,141.51,7.0666]
[1720044771470,100.034648,141.52,141.5,24.7342]
[1720044772089,100.034648,141.52,141.49,7.0674]
[1720044772575,100.034648,141.52,141.5,7.067]
[1720044772970,100.034648,141.52,141.51,7.0666]
[1720044779391,100.034648,141.52,141.5,24.734]
[1720044782991,100.034648,141.52,141.51,7.0666]
[1720044788103,100.034648,141.52,141.51,20.5366]
[1720044788283,100.034648,141.52,141.51,20.8766]
[1720044790092,100.034648,141.52,141.51,42.1466]
[1720044790093,57.92767111,141.52,141.51,42.1466]
[1720044791478,57.92767111,141.52,141.51,28.6766]
[1720044791689,57.92767111,141.52,141.51,42.1466]
[1720044795799,57.92767111,141.52,141.51,28.6766]
[1720044795999,57.92767111,141.52,141.51,42.1466]
[1720044800425,57.42767111,141.52,141.51,42.1466]
[1720044802432,57.42767111,141.52,141.51,20.7066]
[1720044802608,57.42767111,141.52,141.51,7.0666]
[1720044802923,57.42767111,141.52,141.5,17.6671]
[1720044803302,13.47,141.51,141.46,24.741]
[1720044803497,13.47,141.51,141.43,35.3531]
[1720044803498,13.47,141.49,141.45,7.0695]
[1720044803919,86.72957111,141.52,141.47,7.0683]
[1720044804102,13.47,141.5,141.47,7.0683]
[1720044804321,13.47,141.5,141.45,31.1436]
[1720044804322,13.47,141.5,141.46,7.069]
[1720044804512,13.47,141.49,141.46,7.069]
[1720044806327,13.47,141.49,141.47,7.0686]
[1720044807812,13.47,141.5,141.47,7.0686]
[1720044808723,13.47,141.49,141.46,7.0689]
[1720044810622,13.47,141.49,141.47,7.0685]
[1720044814841,13.47,141.5,141.47,7.0685]
[1720044815214,13.47,141.5,141.45,17.6736]
[1720044815433,13.47,141.49,141.46,7.069]
[1720044815741,13.47,141.5,141.46,7.069]
[1720044821124,79.66337111,141.52,141.42,17.6766]
[1720044821328,13.47,141.44,141.42,17.6766]
[1720044821527,7.0702,141.44,141.4,7.0721]
[1720044821747,13.47,141.43,141.4,7.0721]
[1720044821917,13.47,141.43,141.39,24.7533]
[1720044821918,20.5407,141.43,141.39,24.7533]
[1720044822118,13.47,141.43,141.39,24.7533]
[1720044822334,13.47,141.43,141.4,7.072]
[1720044823142,13.47,141.43,141.39,24.7533]
[1720044823728,13.47,141.43,141.39,17.6808]
[1720044823945,13.47,141.44,141.39,31.1508]
[1720044824162,13.47,141.44,141.4,7.0719]
[1720044825128,13.47,141.44,141.41,7.0715]
[1720044825327,13.47,141.44,141.41,24.7504]
[1720044825531,22.3679,141.47,141.41,17.6789]
[1720044825739,13.47,141.45,141.43,7.0705]
[1720044825927,13.47,141.46,141.42,7.0709]
[1720044826250,13.47,141.45,141.42,7.0709]
[1720044826450,13.47,141.45,141.41,24.7503]
[1720044826947,20.5399,141.45,141.41,24.7503]
[1720044827334,7.0693,141.46,141.41,24.7503]
[1720044827547,7.0693,141.46,141.42,7.071]
[1720044827750,13.47,141.45,141.42,7.071]
[1720044827963,13.47,141.45,141.41,17.6789]
[1720044828147,13.47,141.45,141.41,24.7503]
[1720044828852,7.0696,141.45,141.41,24.7503]
[1720044829049,20.5396,141.45,141.41,24.7503]
[1720044829360,20.5396,141.45,141.41,17.6789]
[1720044829664,7.0702,141.44,141.4,7.0719]
[1720044829866,20.5402,141.44,141.4,7.0719]
[1720044830234,7.0702,141.44,141.4,7.0719]
[1720044830537,20.5402,141.44,141.4,7.0719]
[1720044831051,7.0702,141.44,141.4,7.0719]
[1720044831260,20.5402,141.44,141.4,7.0719]
[1720044831846,7.0697,141.45,141.41,7.0714]
[1720044832055,13.47,141.45,141.41,7.0714]
[1720044832558,20.5396,141.45,141.41,7.0714]
[1720044833158,7.0692,141.46,141.42,7.0711]
[1720044833336,13.47,141.45,141.42,7.0711]
[1720044833667,13.47,141.45,141.41,7.0714]
[1720044833668,20.5397,141.45,141.41,7.0714]
[1720044834647,7.0702,141.44,141.4,24.7522]
[1720044834966,20.5402,141.44,141.4,24.7522]
[1720044835148,7.0697,141.45,141.4,24.7522]
[1720044835460,7.0701,141.44,141.4,24.7522]
[1720044835672,13.47,141.43,141.4,17.6802]
[1720044837472,20.5408,141.43,141.4,17.6802]
[1720044838442,13.47,141.43,141.4,17.6802]
[1720044838638,15.2991,141.47,141.4,17.6802]
[1720044838837,13.47,141.44,141.41,7.0714]
[1720044839866,13.47,141.43,141.38,31.1528]
[1720044840250,13.47,141.43,141.39,7.0722]
[1720044840439,15.2991,141.47,141.36,15.6621]
[1720044840641,20.5429,141.39,141.35,24.76]
[1720044841148,13.47,141.39,141.35,24.76]
[1720044841336,13.47,141.39,141.36,7.0739]
[1720044841542,13.47,141.39,141.35,17.6855]
[1720044841773,13.47,141.39,141.37,7.0735]
[1720044842377,13.47,141.39,141.36,7.0739]
[1720044845066,20.5422,141.4,141.36,7.0739]
[1720044845463,13.47,141.38,141.34,7.0748]
[1720044845669,13.47,141.36,141.33,17.689]
[1720044845867,22.2836,141.41,141.33,31.159]
[1720044846177,13.47,141.4,141.35,31.1564]
[1720044846350,29.6867,141.41,141.36,13.47]
[1720044846748,16.2167,141.41,141.35,31.1564]
[1720044846960,13.47,141.4,141.37,7.0735]
[1720044847371,20.5422,141.4,141.36,7.0739]
[1720044848182,13.47,141.4,141.37,7.0736]
[1720044848347,7.0721,141.4,141.36,24.758]
[1720044848547,20.5421,141.4,141.36,24.758]
[1720044848972,20.543,141.39,141.35,7.0745]
[1720044849250,17.8479,141.42,141.36,7.074]
[1720044849251,20.5423,141.4,141.36,7.074]
[1720044850465,20.5426,141.39,141.35,24.7609]
[1720044851763,13.47,141.39,141.35,17.6865]
[1720044851961,13.47,141.39,141.37,7.0735]
[1720044852155,13.47,141.4,141.37,7.0735]
[1720044852359,13.47,141.4,141.36,7.0739]
[1720044852787,20.5421,141.4,141.36,7.0739]
[1720044853780,7.0721,141.4,141.36,7.0739]
[1720044853965,20.5421,141.4,141.36,7.0739]
[1720044855266,7.0727,141.39,141.35,38.231]
[1720044856165,20.5423,141.4,141.36,7.0741]
[1720044856567,7.0718,141.41,141.37,24.7571]
[1720044856766,20.5412,141.42,141.38,7.073]
[1720044856980,7.0712,141.42,141.38,7.073]
[1720044857156,60.52493631,141.47,141.38,13.47]
[1720044857157,69.1623,141.47,141.38,13.47]
[1720044857364,7.0685,141.48,141.44,7.0697]
[1720044857574,20.5388,141.47,141.42,17.6775]
[1720044857761,7.0692,141.46,141.42,24.7483]
[1720044857966,20.5392,141.46,141.42,24.7483]
[1720044858172,20.5392,141.46,141.42,17.6775]
[1720044858469,20.5392,141.46,141.42,24.7485]
[1720044858769,20.5392,141.46,141.42,17.6775]
[1720044859889,20.5392,141.46,141.42,24.7486]
[1720044860074,13.47,141.46,141.42,24.7486]
[1720044860785,20.5392,141.46,141.42,24.7486]
[1720044861279,7.0685,141.48,141.42,17.6775]
[1720044861478,21.6497,141.51,141.44,24.7445]
[1720044861479,7.068,141.49,141.44,24.7445]
[1720044861709,13.47,141.47,141.44,17.6745]
[1720044862194,13.47,141.46,141.44,17.6745]
[1720044862377,13.47,141.46,141.43,7.0705]
[1720044866105,7.0686,141.47,141.43,7.0705]
[1720044866281,13.47,141.46,141.43,7.0705]
[1720044866478,13.47,141.46,141.41,13.47]
[1720044866799,13.47,141.47,141.44,7.0696]
[1720044867187,13.47,141.46,141.43,24.7466]
[1720044874494,7.0683,141.48,141.44,7.07]
[1720044874806,13.47,141.47,141.44,7.07]
[1720044875206,13.47,141.46,141.43,17.6762]
[1720044875410,13.47,141.46,141.43,24.7467]
[1720044876993,7.0689,141.47,141.43,24.7467]
[1720044877193,13.47,141.46,141.43,24.7467]
[1720044877413,7.0689,141.47,141.43,24.7467]
[1720044877600,13.47,141.46,141.43,24.7467]
[1720044878714,7.0678,141.49,141.45,7.0696]
[1720044879026,13.47,141.48,141.45,7.0696]
[1720044879513,13.47,141.47,141.44,7.0699]
[1720044879722,13.47,141.47,141.45,7.0696]
[1720044880017,13.47,141.47,141.44,7.0699]
[1720044880219,13.47,141.47,141.43,17.6762]
[1720044880422,13.47,141.45,141.43,17.6762]
[1720044880625,13.47,141.46,141.43,24.7468]
[1720044880918,13.47,141.45,141.43,24.7468]
[1720044883121,7.0683,141.48,141.44,7.0701]
[1720044883302,13.47,141.46,141.44,7.0701]
[1720044884823,21.6497,141.51,141.43,17.6762]
[1720044885125,13.47,141.47,141.44,7.0699]
[1720044886223,13.47,141.46,141.44,7.0699]
[1720044887822,13.47,141.47,141.44,7.0699]
[1720044890011,20.5387,141.47,141.43,24.7466]
[1720044890204,7.0683,141.48,141.43,24.7466]
[1720044890525,7.0683,141.48,141.44,7.0701]
[1720044890831,13.47,141.47,141.44,7.0701]
[1720044891326,7.0683,141.48,141.44,7.0701]
[1720044891941,13.47,141.47,141.44,7.0701]
[1720044892804,20.5387,141.47,141.43,24.7466]
[1720044895231,13.47,141.46,141.43,24.7466]
[1720044898535,13.47,141.46,141.44,7.07]
[1720044900040,13.47,141.45,141.42,7.0708]
[1720044900331,20.5399,141.45,141.41,31.0763]
[1720044900630,13.47,141.45,141.42,7.0709]
[1720044900841,13.47,141.44,141.42,7.0709]
[1720044901013,13.47,141.45,141.42,7.0709]
[1720044902232,7.0688,141.47,141.43,7.0706]
[1720044902536,13.47,141.45,141.42,7.0709]
[1720044903713,20.34,141.5,141.43,17.6762]
[1720044903917,13.47,141.45,141.43,24.7466]
[1720044904136,13.47,141.46,141.43,24.7465]
[1720044904556,7.0686,141.47,141.39,15.6062]
[1720044904557,7.0709,141.43,141.39,22.6787]
[1720044904723,13.47,141.42,141.39,22.6787]
[1720044905468,7.0703,141.44,141.39,40.3602]
[1720044905638,20.5406,141.43,141.39,40.3602]
[1720044905955,13.47,141.43,141.4,17.6791]
[1720044906131,7.0694,141.46,141.42,7.0708]
[1720044906338,7.0687,141.47,141.43,7.0705]
[1720044906530,13.47,141.45,141.42,17.6777]
[1720044906727,13.47,141.45,141.42,24.7487]
[1720044907050,13.47,141.45,141.42,24.7488]
[1720044907541,7.0693,141.46,141.42,24.7488]
[1720044907718,13.47,141.45,141.42,24.7488]
[1720044908327,7.0678,141.49,141.45,7.0693]
[1720044908533,20.5372,141.5,141.46,7.0689]
[1720044909043,20.5372,141.5,141.45,24.7429]
[1720044909252,7.0677,141.49,141.45,24.7429]
[1720044909624,20.5373,141.5,141.45,24.7429]
[1720044910241,20.5379,141.49,141.45,24.7429]
[1720044910849,7.0679,141.49,141.45,24.7429]
[1720044911030,20.5379,141.49,141.45,24.7429]
[1720044911225,7.0689,141.47,141.44,16.5384]
[1720044911545,7.0684,141.48,141.44,37.0785]
[1720044911852,13.47,141.49,141.45,7.0692]
[1720044912151,20.5376,141.49,141.45,7.0692]
[1720044912353,20.5373,141.5,141.46,7.0691]
[1720044915252,13.47,141.49,141.46,7.0691]
[1720044915555,20.5376,141.49,141.45,7.0694]
[1720044916729,13.47,141.48,141.44,41.2825]
[1720044917255,20.5382,141.48,141.44,41.2825]
[1720044917629,13.47,141.48,141.44,24.7441]
[1720044917832,20.5387,141.47,141.43,7.0704]
[1720044918135,7.0691,141.46,141.43,7.0704]
[1720044918338,7.0691,141.46,141.42,20.5409]
[1720044918638,17.6679,141.5,141.42,13.47]
[1720044918847,7.0688,141.47,141.43,7.0705]
[1720044919047,20.5388,141.47,141.43,7.0705]
[1720044920459,7.0681,141.48,141.44,24.745]
[1720044920641,13.47,141.48,141.45,7.0695]
[1720044922462,20.5381,141.48,141.45,7.0695]
[1720044922759,20.5381,141.48,141.44,7.0701]
[1720044923162,7.0678,141.49,141.45,7.0695]
[1720044923351,20.5381,141.48,141.45,7.0695]
[1720044924234,20.5381,141.48,141.44,7.0701]
[1720044924636,13.47,141.48,141.45,7.0696]
[1720044925336,7.0677,141.49,141.45,7.0696]
[1720044925543,13.47,141.48,141.45,7.0696]
[1720044925958,20.5377,141.49,141.45,7.0696]
[1720044926854,7.0681,141.48,141.45,7.0696]
[1720044927365,7.0674,141.5,141.46,7.069]
[1720044927538,20.5374,141.5,141.46,7.069]
[1720044927742,7.0676,141.49,141.45,40.2491]
[1720044927943,20.5376,141.49,141.45,40.2491]
[1720044929853,13.47,141.49,141.46,7.069]
[1720044930062,20.5376,141.49,141.46,7.069]
[1720044930748,20.5376,141.49,141.45,40.2491]
[1720044932449,7.0672,141.5,141.46,7.069]
[1720044932657,13.47,141.49,141.46,7.069]
[1720044933561,20.5389,141.47,141.43,7.0704]
[1720044933764,20.5389,141.47,141.44,7.0701]
[1720044933966,13.47,141.47,141.44,7.0701]
[1720044934286,20.5383,141.48,141.44,7.0701]
[1720044934956,13.47,141.48,141.45,7.0696]
[1720044935155,13.47,141.48,141.46,7.0691]
[1720044935363,13.47,141.49,141.47,7.0685]
[1720044935673,57.42767111,141.52,141.51,7.0666]
[1720044936082,57.42767111,141.52,141.51,24.7331]
[1720044936375,57.42767111,141.52,141.51,38.2031]
[1720044938251,57.42767111,141.52,141.51,24.7331]
[1720044940580,57.42767111,141.52,141.51,17.6665]
[1720044940770,57.42767111,141.52,141.51,24.7331]
[1720044941658,57.42767111,141.52,141.48,33.4938]
[1720044941862,57.42767111,141.52,141.51,7.0666]
[1720044944489,57.42767111,141.52,141.5,24.7346]
[1720044946501,57.42767111,141.52,141.51,7.0666]
[1720044949181,57.42767111,141.52,141.51,20.5366]
[1720044949658,57.42767111,141.52,141.51,7.0666]
[1720044949858,57.42767111,141.52,141.51,20.5366]
[1720044950293,57.42767111,141.52,141.51,7.0666]
[1720044951282,57.42767111,141.52,141.5,38.2045]
[1720044951775,57.42767111,141.52,141.5,24.7345]
[1720044953181,57.42767111,141.52,141.51,7.0666]
[1720044953482,57.42767111,141.52,141.51,20.5366]
[1720044953866,57.42767111,141.52,141.51,7.0666]
[1720044956394,57.42767111,141.52,141.51,20.5366]
[1720044958470,57.42767111,141.52,141.5,17.6676]
[1720044958691,57.42767111,141.52,141.48,33.4945]
[1720044958870,57.42767111,141.52,141.49,20.5373]
[1720044959272,57.42767111,141.52,141.5,7.0671]
[1720044960473,57.42767111,141.52,141.49,7.0674]
[1720044960699,57.42767111,141.52,141.49,20.5374]
[1720044961193,57.42767111,141.52,141.5,7.0671]
[1720044962695,57.42767111,141.52,141.5,24.7344]
[1720044962893,70.89767111,141.52,141.45,15.602]
[1720044963195,7.0674,141.5,141.46,7.069]
[1720044963370,7.0673,141.5,141.46,20.5391]
[1720044963702,7.0673,141.5,141.46,7.069]